Cogmind - Beta 12 *** ADVENTURER MODE // 2023.05.04 @ 21:50:56 Player: NED1124 Result: Destroyed by G-47 Trooper with Particle Gun Performance ------------- Evolutions (2) 1000 Regions Visited (3) 600 Robots Destroyed (22) 110 Value Destroyed (747) 747 Prototype IDs (0) 0 Alien Tech Used (0) 0 Bonus (0) 0 TOTAL SCORE: 2457 Bonus ------- None Cogmind --------- Core Integrity 0/550 Matter 300/300 Energy 100/100 System Corruption 0% Temperature Cool (9) Movement Core (50) Location -8/Materials Parts ------- > --- POWER (1) -------- (None) > --- PROPULSION (4) --- (None) > --- UTILITY (4) ------ (None) > --- WEAPON (2) ------- (None) > --- INVENTORY (5) ---- Ion Engine Light Nuclear Core Heat Sink Small Storage Unit Dynamic Insulation System Peak State ------------ > --- POWER ------------ Improved Ion Engine > --- PROPULSION ------- Aluminum Leg Aluminum Leg Aluminum Leg Carbon-fiber Leg > --- UTILITY ---------- Heat Sink Medium Storage Unit Signal Interpreter Terrain Scan Processor > --- WEAPON ----------- EM Pulse Gun Heavy Assault Rifle > --- INVENTORY -------- Ion Engine Ion Engine Light Nuclear Core Small Storage Unit Improved Melee Analysis Suite Dynamic Insulation System EM Pulse Gun Assault Rifle [Rating: 17] Favorites ----------- Power Ion Engine Engine Ion Engine Propulsion Aluminum Leg Leg Aluminum Leg Utility Medium Storage Unit Device Heat Sink Storage Medium Storage Unit Processor Signal Interpreter Weapon EM Pulse Gun Energy Gun EM Pulse Gun Ballistic Gun Assault Rifle Build | -11 -10 -9 -8 ------- Run | Jun Mat Mat Mat Slots Evolved 4 | . . 2 2 Power . | . . . . Propulsion 2 | . . 1 1 Utility 2 | . . 1 1 Weapon . | . . . . Parts Attached 27 | 7 5 7 8 Power 4 | 2 1 . 1 Engine 4 | 2 1 . 1 Core . | . . . . Reactor . | . . . . Propulsion 10 | 2 2 2 4 Treads . | . . . . Leg 10 | 2 2 2 4 Wheel . | . . . . Hover . | . . . . Flight . | . . . . Utility 8 | 1 2 4 1 Device 4 | . 1 3 . Storage 2 | 1 1 . . Processor 2 | . . 1 1 Hackware . | . . . . Protection . | . . . . Artifact . | . . . . Weapon 5 | 2 . 1 2 Energy Gun 2 | 1 . . 1 Energy Cannon . | . . . . Ballistic Gun 3 | 1 . 1 1 Ballistic Cannon . | . . . . Launcher . | . . . . Special Weapon . | . . . . Impact Weapon . | . . . . Slashing Weapon . | . . . . Piercing Weapon . | . . . . Special Melee Weapon . | . . . . Unidentified Prototypes . | . . . . Parts Lost 10 | . . 1 9 Power 1 | . . . 1 Propulsion 6 | . . . 6 Utility 1 | . . 1 . Weapon 2 | . . . 2 Highest Loss Streak 7 | . . 1 7 To Critical Strikes . | . . . . Average Slot Usage (%) 79 | . 91 100 53 Engine 9 | . 14 11 4 Leg 24 | . 28 33 15 Device 10 | . 6 18 4 Storage 9 | . 14 11 5 Processor 5 | . . 3 11 Energy Gun 9 | . 14 11 5 Ballistic Gun 9 | . 14 11 5 Naked Turns 124 | . . . 124 Heaviest Build 23 | 14 20 22 23 Greatest Support 45 | 20 20 30 45 Greatest Overweight (x) 5 | 1 . . 5 Average Overweight (x) . | . . . . Largest Inventory Capacity 10 | 8 10 10 10 Average Capacity 9 | 7 9 10 8 Most Carried 9 | 2 9 9 9 Average Carried 5 | 1 4 7 6 Final Capacity 10 | 8 10 10 5 Final Carried 9 | 2 9 7 5 Class Distribution -------------------- 67% | Mutant 32% | Scavenger-Mutant Dominant Class ---------------- Mutant | -10/Materials Mutant | -9/Materials Mutant | -8/Materials Resources | -11 -10 -9 -8 ----------- Run | Jun Mat Mat Mat Matter Collected 564 | 177 181 58 148 Remotely . | . . . . Salvage Created 837 | . 284 207 346 Parts 53 | . 17 14 22 Haulers Intercepted . | . . . . Recyclers Shooed . | . . . . Parts Field Recycled . | . . . . Retrieved Matter . | . . . . Parts Self-Destructed . | . . . . Prevented . | . . . . Kills | -11 -10 -9 -8 ------- Run | Jun Mat Mat Mat Combat Hostiles Destroyed 19 | . 6 6 7 Guns 16 | . 6 5 5 AOE 3 | . . 1 2 Classes Destroyed 8 | . 2 2 4 Builder 1 | . . . 1 Mechanic 1 | . . . 1 Watcher 1 | . 1 . . Swarmer 3 | . . 3 . Grunt 11 | . 6 1 4 Duelist 1 | . . . 1 Sentry 3 | . . 2 1 Hunter 1 | . . . 1 Best Kill Streak 4 | . 3 4 4 Combat Bots Only 4 | . 3 4 3 Max Kills in Single Turn 3 | . 2 1 3 Gunslinging 1 | . 1 . . Exploded 2 | . . 1 2 Melee . | . . . . Uniques/NPCs Destroyed . | . . . . Combat | -11 -10 -9 -8 -------- Run | Jun Mat Mat Mat Damage Taken 1631 | . 203 192 1236 Core 621 | . 40 29 552 Absorbed by Shields . | . . . . Core Remaining (%) 92 | 100 84 92 . Volleys Fired 53 | . 14 8 31 Largest 2 | . 2 2 2 Hottest 63 | . 60 63 63 Shots Fired 98 | . 28 16 54 Gun 98 | . 28 16 54 Cannon . | . . . . Launcher . | . . . . Special . | . . . . Kinetic 53 | . 14 8 31 Thermal . | . . . . Explosive . | . . . . Electromagnetic 45 | . 14 8 23 Robot Hit Streak 14 | . 10 11 14 Robot Miss Streak 3 | . 1 1 3 Penetration Max . | . . . . Secondary Targets 4 | . 2 2 . Max Gunslinging Chain 1 | . 1 1 . Shots Hit Robots 76 | . 22 12 42 Core Hits 40 | . 9 9 22 Critical Kills . | . . . . Critical Parts Destroyed . | . . . . Critical Strikes 1 | . . . 1 Corrupt 1 | . . . 1 Melee Attacks . | . . . . Impact . | . . . . Slashing . | . . . . Piercing . | . . . . Sneak Attacks . | . . . . Combat Hostiles . | . . . . Follow-up Attacks . | . . . . Damage Inflicted 1839 | . 310 207 1322 Guns 1049 | . 307 145 597 Cannons . | . . . . Explosions 760 | . . 50 710 Melee . | . . . . Ramming 30 | . 3 12 15 Kinetic 596 | . 151 57 388 Thermal 760 | . . 50 710 Explosive . | . . . . Electromagnetic 453 | . 156 88 209 Impact . | . . . . Slashing . | . . . . Piercing . | . . . . Highest Corruption . | . . . . Average Corruption . | . . . . Corruption Purged . | . . . . Corruption Blocked . | . . . . Overload Shots . | . . . . Overflow Damage 178 | . . . 178 Projectiles . | . . . . Explosions 178 | . . . 178 Melee . | . . . . Knockbacks 2 | . 1 . 1 Impact 2 | . 1 . 1 Kinetic . | . . . . Secondary . | . . . . Self-Inflicted Damage 180 | . . 32 148 Shots 4 | . . 1 3 Rammed 1 | . . . 1 Targets Rammed 5 | . 1 3 1 Kicked 4 | . 1 3 . Crushed . | . . . . Highest Temperature 90 | . 90 7 25 Average Temperature 47 | . 61 4 15 Received Heat Transfer 807 | . 150 63 594 Siege Activations . | . . . . Robots Corrupted . | . . . . Combat Hostiles . | . . . . Parts Fried 1 | . . . 1 Impact Corruptions . | . . . . Robots Melted . | . . . . Combat Hostiles . | . . . . Parts Melted . | . . . . Heat Transferred 550 | . . 50 500 Parts Sabotaged . | . . . . Parts Stolen . | . . . . Parts Stripped . | . . . . Power Chain Reactions 2 | . . 1 1 Missiles Intercepted . | . . . . Alert | -11 -10 -9 -8 ------- Run | Jun Mat Mat Mat Peak Influence 270 | . 188 229 270 Initial 82 | . . 67 82 Average 122 | . 61 142 174 Maximum Alert Level 1 | . . 1 1 Low Security (%) 79 | 100 100 71 67 Level 1 20 | . . 28 32 Level 2 . | . . . . Level 3 . | . . . . Level 4 . | . . . . Level 5 . | . . . . High Security . | . . . . Max Security . | . . . . Squads Dispatched 4 | . 2 . 2 Investigation 2 | . 2 . . Extermination . | . . . . Reinforcement 2 | . . . 2 Assault . | . . . . Garrison . | . . . . Intercept . | . . . . Searches Triggered . | . . . . Construction Impeded . | . . . . Haulers Reinforced . | . . . . Active Scanning Responses . | . . . . Cargo Convoy Interrupts . | . . . . Stealth | -11 -10 -9 -8 --------- Run | Jun Mat Mat Mat Distress Signals 6 | . 1 3 2 Communications Jammed . | . . . . Distress Signals . | . . . . Times Spotted 44 | . 9 10 25 Peak Tracking Total 7 | . 4 7 7 Tactical Retreats 1 | . . . 1 Traps | -11 -10 -9 -8 ------- Run | Jun Mat Mat Mat Traps Triggered 1 | . 1 . . Indirectly . | . . . . Trap Hack Attempts . | . . . . Triggered . | . . . . Disarmed . | . . . . Reprogrammed . | . . . . Reused . | . . . . Traps Extracted . | . . . . Installed . | . . . . Triggered . | . . . . Machines | -11 -10 -9 -8 ---------- Run | Jun Mat Mat Mat Machines Disabled 2 | . . . 2 Max in Single Turn 2 | . . . 2 Machines Repaired . | . . . . Machines Sabotaged . | . . . . Overloaded Fab Kills . | . . . . Hacking | -11 -10 -9 -8 --------- Run | Jun Mat Mat Mat Machines Accessed 5 | . 2 2 1 Terminals 5 | . 2 2 1 Fabricators . | . . . . Repair Stations . | . . . . Recycling Units . | . . . . Scanalyzers . | . . . . Garrison Access . | . . . . Total Hacks 15 | . 8 6 1 Successful 8 | . 4 3 1 Failed 7 | . 4 3 . Catastrophic 1 | . 1 . . Database Lockouts . | . . . . Manual 4 | . 4 . . Terminals 15 | . 8 6 1 Fabricators . | . . . . Repair Stations . | . . . . Recycling Units . | . . . . Scanalyzers . | . . . . Garrison Access . | . . . . Terminal Hacks 8 | . 4 3 1 Record 1 | . . 1 . Branch Access Points 1 | . 1 . . Emergency Access Points 1 | . . 1 . Unreport Threat 2 | . 1 . 1 Locate Traps 1 | . . 1 . Recall Investigation 1 | . 1 . . Zone Layout 1 | . 1 . . Fabricator Hacks . | . . . . Repair Station Hacks . | . . . . Recycling Unit Hacks . | . . . . Scanalyzer . | . . . . Garrison Access Hacks . | . . . . Unauthorized Hacks . | . . . . Terminals . | . . . . Fabricators . | . . . . Repair Stations . | . . . . Recycling Units . | . . . . Scanalyzers . | . . . . Garrison Access . | . . . . Data Cores Recovered . | . . . . Used . | . . . . Hacking Detections 3 | . 2 1 . Full Trace Events 2 | . 2 . . Feedback Events . | . . . . Feedback Blocked . | . . . . Robot Schematics Acquired . | . . . . Robots Built . | . . . . Authchips . | . . . . Time . | . . . . Total Robot Build Rating . | . . . . Part Schematics Acquired . | . . . . Parts Built . | . . . . Authchips . | . . . . Time . | . . . . Total Part Build Rating . | . . . . Parts Repaired . | . . . . Time . | . . . . Parts Recycled . | . . . . Recycled Matter . | . . . . Retrieved Matter . | . . . . Retrieved Components . | . . . . Parts Scanalyzed . | . . . . Part Schematics Acquired . | . . . . Parts Damaged . | . . . . Bothacking | -11 -10 -9 -8 ------------ Run | Jun Mat Mat Mat Used RIF Installer . | . . . . Robots Hacked . | . . . . Non-combat . | . . . . Combat . | . . . . Robot Hacks Applied . | . . . . Relay Couplers Released . | . . . . Fabnet Peak Effective % . | . . . . Robots Rewired . | . . . . Allies Hacked . | . . . . Hacks Repelled . | . . . . Allies | -11 -10 -9 -8 -------- Run | Jun Mat Mat Mat Total Allies . | . . . . Largest Group . | . . . . Highest-Rated Group . | . . . . Highest-Rated Ally . | . . . . Total Orders . | . . . . Ally Attacks . | . . . . Total Damage . | . . . . Kills . | . . . . Allies Corrupted . | . . . . Allies Melted . | . . . . Intel | -11 -10 -9 -8 ------- Run | Jun Mat Mat Mat Robot Analysis Total . | . . . . Derelict Logs Recovered . | . . . . Drone Launches . | . . . . Drone Recoveries . | . . . . Exploration | -11 -10 -9 -8 ------------- Run | Jun Mat Mat Mat Turns Passed 1049 | 90 246 338 375 Spaces Moved 830 | 69 160 250 351 Core 277 | 7 . . 270 Treads . | . . . . Legs 553 | 62 160 250 81 Wheels . | . . . . Hover . | . . . . Flight . | . . . . Fastest Speed 50 | 50 120 120 50 Average Speed 102 | 113 120 120 78 Slowest Speed 300 | 120 120 120 300 Overloaded Moves . | . . . . Propulsion Burnouts . | . . . . Robots Hopped . | . . . . Cave-ins Triggered . | . . . . Exploration Rate (%) 17 | 4 19 17 31 Regions Visited 3 Branch Regions . Pre-discovered Areas . | . . . . Known Exits Taken 1 | . . 1 . Unknown Exits Taken 2 | 1 1 . . Scrap Searched . | . . . . Spaces Dug . | . . . . Terrain Destroyed 50 | . . 2 48 Melee . | . . . . Projectile . | . . . . AOE 50 | . . 2 48 Terrain Rammed . | . . . . Walls Destroyed . | . . . . Machines Disabled . | . . . . Actions | -11 -10 -9 -8 --------- Run | Jun Mat Mat Mat Total 928 | 77 184 272 395 Wait . | . . . . Move 827 | 68 159 249 351 Hop . | . . . . Pick Up 10 | 2 4 1 3 Fast Attach 8 | 6 2 . . Attach 11 | . . 5 6 Detach 4 | . 1 2 1 Swap 8 | 1 3 2 2 Drop 2 | . . 2 . Fire 53 | . 14 8 31 Melee . | . . . . Ram 1 | . . . 1 Kick 4 | . 1 3 . Crush . | . . . . Escape Stasis . | . . . . Rewire . | . . . . Trap . | . . . . Miscellaneous . | . . . . Route ------- -11/Junkyard -10/Materials (discovered 3 exits: *Mat / Min x2) -9/Materials -8/Materials History --------- Turn | Location | Event 11 | -11/Junkyard | Discovered new exit (range 16) 91 | -11/Junkyard | Entered Materials 162 | -10/Materials | Identified exit to Mines 301 | -10/Materials | Build established: Mutant 328 | -10/Materials | Discovered new exit (range 7) 337 | -10/Materials | Entered another Materials area 337 | -9/Materials | Evolved 2 slots: Propulsion x1, Utility x1 662 | -9/Materials | Discovered new exit (range 11) 674 | -9/Materials | Identified exit to Materials 675 | -9/Materials | Entered another Materials area 675 | -8/Materials | Evolved 2 slots: Propulsion x1, Utility x1 822 | -8/Materials | Build established: Scavenger-Mutant 868 | -8/Materials | Core integrity fell below 50% 898 | -8/Materials | Lost 7 parts (1p4n2w) 926 | -8/Materials | Released all parts (5) 1034 | -8/Materials | Core integrity fell below 20% 1050 | -8/Materials | Destroyed by G-47 Trooper with Particle Gun Last Messages --------------- 00921_ U-05 Engineer builds a Wall. 00922_ R-06 Scavenger collects Lgt. Armor Plating. 00925_ U-05 Engineer builds a Wall. 00925_ U-05 Engineer lays Concrete. 00926_ Released EM Pulse Gun. 00926_ Released Med. Storage Unit. 00926_ Released Signal Interpreter. 00926_ Released Assault Rifle. 00926_ Released Terrain Scan Processor. 00928_ R-06 Scavenger collects Wheel. 00943_ Connecting with Terminal... >>Alert(Purge) Purged threat record, alert level lowered. 00954_ O-16 Technician: "IFF HANDSHAKE FAILED. SECURING TERMINAL." 00962_ W-25 Informer distress signal alerts nearby ally. 00964_ ALERT: Hostiles spotted, dispatching reinforcements to Terminal M002. 00976_ Critical hit (Burn: +37). 01050_ Slammed into G-47 Trooper. 01050_ G-47 Trooper knocked back. Map ----- +----------------------------------------------------+ | ??????????????????????????????? | | ??????????????????????????????? | | ??????????????????????????????? | | ??????????????????????????????? | | ??????????????????????????????? | | ??????????????????????????????? | | ??????????????????????????????? | | ??????????????????????????????? | | ??????????????????????????????? | | ??????????????????????????????? | | ??????????????????????????????? | | ??????????????????????????????? | | ????????? ???????????????????? | | ????????? #??????????????????? | | ????????? #??????????????????? | | #######?? #??????????????????? | | # #?? #??????????????????? | | # """ #?# ######+##??????????? | | # """ #?# ^ #######????? | | # """ #?# ?????? | | # """ #?# ??????? | | # #?# """ #??????? | | # """ #?# """ #??????? | | # """ ### """ #????### | | # """ #gg #????# | | # """ @g #????# | | # # """ ###### [ | | # # """ # | | ######## """ + | | # # ///######+#+# | | # """ # Y ///## #/ | | # """ # // # # | | # """ # ## """# | | # # ## """### | | # """ # ]= ## """#?? | | # """ + %= ## #?? | | # """ # ######+#### """#?? | | # # ## # """??? | | # """ ##### # ?????? | | # """ =#???# """" # ?????? | | # """ #???# """" # ?????? | | # !????# """" ! ####??????? | | ??#####????# #?????????? | | ???????????# / #?????????? | | ???????????##########?????????? | | | | | | | | | | | +----------------------------------------------------+ Best States ------------- Heat Dissipation 41 Energy Generation 12 Energy Capacity 265 Matter Stores 300 Matter Capacity 300 Sight Range 16 Robot Scan Range 14 Terrain Scan Density 85 Resistance: KI 20 Resistance: TH 20 Resistance: EX 20 Resistance: EM 20 Resistance: I 20 Resistance: S 20 Resistance: P 20 Evasion (%) 55 Offensive Hacking 10 Item Schematics ----------------- None Robot Schematics ------------------ None Fabricated ------------ Nothing Alien Tech Used ----------------- None Achievements -------------- None Challenges ------------ None Game ------ Seed CooledCloakingPrototype Manual? 0 Play Time 00:15:08 Cumulative 35.3 hours Start 2023.05.04 @ 21:36:23 End 2023.05.04 @ 21:50:56 Sessions 1 Manual Loads 0 Difficulty Adventurer Special Mode None Game No. 67 Rogue 0 Adventurer 6 Explorer 61 Win Type - Total 0 Types 0/0/0/0/0/0/0/0/0 Lore% 7 Gallery% 28 Achievement% 23 Wizard Run 0 Options --------- ASCII 0 Keyboard 1 Movement Arrows Keybinds 0 Fullscreen 1 Font 18/SmallcapsGlow Map View 76x50 Tactical HUD 1 Map Filters NONE Filters NONE Steam 1 RUN: 3a7f1bf6-6415-478f-b8a0-9e120a4bd06c